[Event "2nd Serbia Open Masters 2022"]
[Site "Novi Sad"]
[Date "2022.06.29"]
[Round "2.20"]
[White "Ohanyan, Emin"]
[Black "Makhnev, Denis"]
[Result "1-0"]
[ECO "D37"]
[WhiteElo "2366"]
[BlackElo "2505"]
[Annotator "TA"]
[PlyCount "93"]
[EventDate "2022.06.28"]
[EventType "swiss"]
[EventCountry "SRB"]
[SourceTitle "playchess.com"]
[Source "ChessBase"]
[SourceQuality "1"]
[TimeControl "40/5400+30:900+30"]

{[%evp 14,93,19,14,15,14,37,25,32,29,39,24,39,51,39,17,38,16,50,46,37,26,29,22,216,220,227,239,1113,266,1099,0,1039,0,1046,280,281,268,272,278,280,204,243,195,561,218,212,-13,218,204,201,215,208,204,208,208,210,204,216,218,203,187,348,354,337,349,328,341,368,344,398,406,408,401,402,381,886,746,1075,983,935,751]} 1. d4 {[%emt 0:00:06]} d5 {[%emt 0:01:41]} 2. c4 {[%emt 0:00:08]} e6 {[%emt 0:00:06]} 3. Nc3 {[%emt 0:00:07]} Nf6 {[%emt 0:00:10]} 4. Nf3 {[%emt 0:00:07]} Nbd7 {[%emt 0:00:39]} 5. Bf4 {[%emt 0:00:29]} dxc4 {[%emt 0:00:21]} 6. e3 {[%emt 0:00:05]} Nd5 {[%emt 0:00:09]} 7. Bxc4 {[%emt 0:00:20]} Nxf4 {[%emt 0:00:09]} 8. exf4 {[%emt 0:00:05]} Nb6 {[%emt 0:00:24] The main line 8...Nb6 scores better than 8...Bd6. D37: Queen's Gambit Declined: 5 Bf4.} 9. Bb3 {[%emt 0:10:17]} Bd6 {[%emt 0:06:34]} 10. Ne5 {[%emt 0:08:23]} O-O {[%emt 0:00:23] White has an edge.} 11. O-O {[%emt 0:00:10]} c6 {[%emt 0:16:11] [#]} 12. Ne4 $146 {[%emt 0:19:15]} ({Predecessor:} 12. Bc2 Nd5 13. Qh5 f5 14. g3 Bxe5 15. dxe5 b6 16. Rac1 Qe7 17. Bb3 Bb7 18. Rfd1 {½-½ (62) Suleymenov,A (2420)-Makhnev,D (2499) Nur Sultan 2021}) 12... f6 {[%emt 0:02:21]} 13. Nd3 {[%emt 0:12:30]} (13. Nxd6 Qxd6 14. Nc4 Qxf4 $11) 13... Nd5 {[%emt 0:12:45]} 14. Qf3 {[%emt 0:03:11]} Kh8 {[%emt 0:13:02]} 15. Rac1 {[%emt 0:04:05]} Re8 {[%emt 0:01:58]} 16. Rfe1 {[%emt 0:04:30]} Bf8 {[%emt 0:00:34]} 17. Re2 {[%emt 0:03:36]} Nc7 {[%emt 0:05:47]} 18. Qh5 {[%emt 0:13:39][%cal Od3e5] aiming for Ne5!} Nd5 $2 {[%emt 0:08:16]} (18... Re7 $11 {and Black has nothing to worry.}) 19. Bxd5 $18 {[%emt 0:07:57]} cxd5 {[%emt 0:02:30]} 20. Ne5 $1 {[%emt 0:03:34] Strongly threatening Nf7+.} Kg8 {[%emt 0:00:14]} (20... fxe5 $2 21. Ng5 Qxg5 22. fxg5 $18) (20... Re7) 21. Qf7+ {[%emt 0:02:04]} Kh8 {[%emt 0:00:07]} 22. Qh5 {[%emt 0:02:45] And now Nf7+ would win.} Kg8 {[%emt 0:00:07]} (22... fxe5 $2 23. Ng5 Qxg5 24. fxg5 $18) 23. Qf7+ {[%emt 0:01:08]} Kh8 {[%emt 0:00:06] [#]} 24. Ng6+ $1 {[%emt 0:01:28][%mdl 512]} hxg6 {[%emt 0:00:07]} 25. Re3 {[%emt 0:00:57][%cal Re3h3]} e5 {[%emt 0:00:07] [#] Hoping for ...Re7.} 26. Rcc3 $1 {[%emt 0:00:36][%cal Oe3h3] Threatening mate with Rh3+!} Qd7 {[%emt 0:00:10]} 27. Rh3+ {[%emt 0:01:14]} Qxh3 {[%emt 0:00:09]} 28. Qxe8 {[%emt 0:00:42] Nxf6 would kill now. Dancing on a razor blade.} (28. gxh3 Be6 29. Qxg6 dxe4 30. dxe5 fxe5 $17) 28... Qh7 $2 {[%emt 0:07:27]} (28... Qe6 {is a better chance.} 29. Qxf8+ Qg8 30. Qxg8+ Kxg8) 29. Qxf8+ $2 {[%emt 0:00:58]} (29. Nd6 g5 30. Qxf8+ Qg8 31. Qxg8+ Kxg8 32. Nxc8 exf4 33. Rc7) 29... Qg8 {[%emt 0:00:08]} 30. Qxg8+ {[%emt 0:00:16]} Kxg8 {[%emt 0:00:09][%mdl 4096] Endgame KRB-KRN} 31. Nd6 {[%emt 0:00:07]} Be6 {[%emt 0:02:59]} 32. fxe5 {[%emt 0:00:04]} fxe5 {[%emt 0:00:06]} 33. dxe5 {[%emt 0:00:03]} d4 {[%emt 0:00:07]} 34. Rd3 {[%emt 0:00:46]} Bxa2 {[%emt 0:00:16]} 35. Rxd4 {[%emt 0:00:10]} b6 {[%emt 0:01:16]} 36. f4 {[%emt 0:01:44]} a5 {[%emt 0:01:56]} 37. Kf2 {[%emt 0:00:37]} Ra7 $2 {[%emt 0:01:13]} (37... b5 {keeps fighting.} 38. g3 (38. Nxb5 Rb8 $18) 38... b4) 38. Nb5 {[%emt 0:00:34]} Rf7 {[%emt 0:00:15]} 39. h4 {[%emt 0:00:15]} Rf8 {[%emt 0:01:19]} 40. Ke3 {[%emt 0:00:00]} Rc8 {[%emt 0:00:00]} 41. Nc3 {[%emt 0:03:46]} Bf7 {[%emt 0:02:16]} 42. Rd6 {[%emt 0:03:55]} b5 {[%emt 0:04:56]} 43. Nxb5 {[%emt 0:00:38]} Rb8 {[%emt 0:00:06]} 44. Nc7 {[%emt 0:01:25]} Rb7 $2 {[%emt 0:00:11]} (44... Rb3+ 45. Rd3 Rb6 46. Rd8+ Kh7) 45. e6 {[%emt 0:02:23] White is clearly winning.} Rxc7 {[%emt 0:01:57]} 46. Rd8+ {[%emt 0:00:18]} Kh7 {[%emt 0:00:11]} 47. Rd7 {[%emt 0:00:10] Weighted Error Value: White=0.61/Black=0.44} 1-0

[Event "2nd Serbia Open Masters 2022"]
[Site "Novi Sad"]
[Date "2022.06.29"]
[Round "2.21"]
[White "Tomazini, Zan"]
[Black "Dudin, Gleb"]
[Result "1-0"]
[ECO "C45"]
[WhiteElo "2359"]
[BlackElo "2473"]
[Annotator "TA"]
[PlyCount "105"]
[EventDate "2022.06.28"]
[EventType "swiss"]
[EventCountry "SRB"]
[SourceTitle "playchess.com"]
[Source "ChessBase"]
[SourceQuality "1"]
[TimeControl "40/5400+30:900+30"]

{[%evp 20,105,0,-12,90,84,93,88,109,70,68,56,55,60,67,59,68,74,115,111,129,126,177,181,179,177,180,172,248,247,399,367,468,439,424,380,531,529,479,479,493,474,589,557,690,694,682,676,1793,834,825,789,690,750,651,641,624,606,675,618,1104,1078,29985,803,850,834,783,628,585,422,390,376,376,358,29984,29972,29970,29973,29969,29968,29967,29967,29974,29974,29968,29969,4133,1820]} 1. e4 {[%emt 0:02:39]} e5 {[%emt 0:06:26]} 2. Nf3 {[%emt 0:00:17]} Nc6 {[%emt 0:00:09]} 3. d4 {[%emt 0:00:13]} exd4 {[%emt 0:00:10]} 4. Nxd4 {[%emt 0:00:05]} Nf6 {[%emt 0:00:07]} 5. Nxc6 {[%emt 0:00:07]} bxc6 {[%emt 0:00:07]} 6. e5 {[%emt 0:00:04]} Qe7 {[%emt 0:00:13]} 7. Qe2 {[%emt 0:00:05]} Nd5 {[%emt 0:00:25]} 8. c4 {[%emt 0:00:05]} Ba6 {[%emt 0:00:38]} 9. b3 {[%emt 0:03:31]} g6 {[%emt 0:03:16]} 10. Bb2 {[%emt 0:03:26] 10.Ba3 gains popularity.} Bg7 {[%emt 0:03:17]} 11. Nd2 {[%emt 0:01:03]} Nf4 {[%emt 0:07:12] C45: Scotch Game.} (11... Nb4 $11 12. Nf3 c5) 12. Qe3 $16 {[%emt 0:02:38]} Ne6 {[%emt 0:14:39]} 13. Ne4 {[%emt 0:02:22] [#] Against f6} c5 $146 {[%emt 0:01:32][%cal Oe6d4] White is better.} ({Predecessor:} 13... O-O-O 14. Qxa7 Bb7 15. c5 Nf4 16. Ba6 Bxa6 17. Qa8# {1-0 (17) Dimitrijevic,R (2232)-Jovanovic,M (1973) Belgrade 2008}) 14. O-O-O {[%emt 0:12:36]} Bb7 {[%emt 0:02:18]} 15. Nf6+ {[%emt 0:01:43]} Bxf6 {[%emt 0:00:08]} 16. exf6 {[%emt 0:00:04]} Qf8 {[%emt 0:00:52]} 17. Rg1 {[%emt 0:09:08] 0x0.00207c4ec453dp-1022s more active pieces.} O-O-O {[%emt 0:04:10]} 18. g3 {[%emt 0:01:48] White stays focused until the end.} d6 {[%emt 0:04:44]} 19. h4 {[%emt 0:04:17]} Kb8 {[%emt 0:02:18][%cal Og6g5]} 20. Bh3 $1 {[%emt 0:02:02][%cal Bf1h3,Bh3g2,Bg2d5,Bd5f7][%mdl 32]} Bc8 {[%emt 0:01:29]} (20... Re8 $16) 21. Bg2 $18 {[%emt 0:04:10]} Bb7 {[%emt 0:06:14] Inhibits Qe4.} 22. Bd5 {[%emt 0:00:23]} Re8 {[%emt 0:09:03][%cal Oe6d4]} 23. Rge1 {[%emt 0:04:05]} Nd4 {[%emt 0:04:50] [#]} (23... Nd8 {was worth a try.} 24. Qd3 Rg8) 24. Qd3 $1 {[%emt 0:04:10]} ({Weaker is} 24. Qxe8+ Qxe8 25. Rxe8+ Rxe8 $16) 24... Qh6+ $2 {[%emt 0:03:15]} (24... c6) 25. f4 {[%emt 0:04:21]} Qh5 {[%emt 0:08:00]} 26. Bxd4 {[%emt 0:08:00]} cxd4 {[%emt 0:01:47]} 27. Bxf7 {[%emt 0:06:05]} Ref8 {[%emt 0:05:55]} 28. Re7 {[%emt 0:00:44]} Qa5 {[%emt 0:01:11]} 29. Qxd4 {[%emt 0:02:18]} Qxa2 {[%emt 0:00:28]} 30. Qb2 {[%emt 0:07:50]} Qa5 {[%emt 0:00:06]} 31. Bd5 {[%emt 0:00:14] Against Bf3} Qc5 {[%emt 0:03:24]} 32. b4 {[%emt 0:02:24]} Qb6 {[%emt 0:00:43]} 33. f7 {[%emt 0:01:00][%cal Ob2h8] aiming for Qxh8!} h5 {[%emt 0:02:32] [#]} 34. Rde1 {[%emt 0:03:20]} (34. Qxh8 $142 $3 {[%mdl 512]} Rxh8 35. Re8+ Rxe8 36. fxe8=Q+ Bc8 37. Kc2) 34... Bxd5 {[%emt 0:00:33]} 35. cxd5 {[%emt 0:01:18]} Kb7 {[%emt 0:00:23]} 36. Re8 {[%emt 0:01:24] Black must now prevent Qc3.} Qb5 {[%emt 0:00:23]} 37. Qc2 {[%emt 0:06:28] R1e7 is the strong threat.} Qxd5 {[%emt 0:01:09]} 38. Qxg6 {[%emt 0:00:23]} Qc4+ {[%emt 0:04:46]} 39. Qc2 {[%emt 0:00:08]} Qxb4 {[%emt 0:00:32][%cal Of8f7]} 40. R1e3 {[%emt 0:00:00] Intending Rb3 and mate.} Qc5 {[%emt 0:00:00]} 41. Rc3 {[%emt 0:02:46]} (41. Rb3+ $142 Kc6 42. Rc3 Qxc3 43. Qxc3+ Kb7 44. Qxh8 Rxh8 45. Rxh8 Kc6 46. Rxh5) 41... Qg1+ {[%emt 0:01:01]} 42. Kb2 {[%emt 0:00:05] White threatens Qe4+ and mate.} Qd4 {[%emt 0:04:41]} 43. Re7 {[%emt 0:05:57] Threatens to win with Ka2.} Ka8 {[%emt 0:09:20]} 44. Rexc7 {[%emt 0:00:27] Strongly threatening Kc1.} Rb8+ {[%emt 0:00:11]} 45. Ka2 {[%emt 0:06:52][%cal Oc3c5] White wants to mate with R3c5! Dancing on a razor blade.} Qd5+ {[%emt 0:02:46]} 46. Ka1 {[%emt 0:00:07]} Rhf8 $2 {[%emt 0:00:34]} (46... Rb4 $18 47. Rc8+ Rb8 48. Rxb8+ (48. Qd3 $2 Qa5+ 49. Ra3 Qe1+ 50. Ka2 Rhxc8 $19) 48... Rxb8) 47. Qa4 {[%emt 0:02:05][%csl Ga4][%cal Rc7a7]} a5 {[%emt 0:00:31]} 48. Qc6+ {[%emt 0:02:24]} Qxc6 {[%emt 0:00:06]} 49. R3xc6 {[%emt 0:00:03][%cal Rc6a6]} Rbd8 {[%emt 0:00:42]} 50. Kb2 {[%emt 0:01:13]} d5 {[%emt 0:00:21]} 51. Kc3 {[%emt 0:00:15]} d4+ {[%emt 0:00:05]} 52. Kd3 {[%emt 0:00:03]} Kb8 {[%emt 0:00:14]} 53. Re7 {[%emt 0:00:19] Weighted Error Value: White=0.13 (very precise) /Black=0.74} (53. Rc5 $142 Rh8 54. Re7) 1-0

[Event "2nd Serbia Open Masters 2022"]
[Site "Novi Sad"]
[Date "2022.06.29"]
[Round "2.22"]
[White "Tsolakidou, Stavroula"]
[Black "Fernandez, Daniel Howard"]
[Result "1/2-1/2"]
[ECO "E90"]
[WhiteElo "2358"]
[BlackElo "2503"]
[Annotator "TA"]
[PlyCount "82"]
[EventDate "2022.06.28"]
[EventType "swiss"]
[EventCountry "SRB"]
[SourceTitle "playchess.com"]
[Source "ChessBase"]
[SourceQuality "1"]
[TimeControl "40/5400+30:900+30"]

{[%evp 17,82,14,21,0,0,0,0,0,0,-34,-20,-31,-39,-37,-37,-47,-23,-28,-22,-29,0,-52,-6,-6,-6,-6,-6,-23,-8,-89,-7,-9,-8,-41,-6,-8,-10,-10,-8,-10,0,0,0,-3,0,0,0,0,0,0,-8,-10,0,-3,0,0,0,-8,0,0,0,0,0,0,0,0,0]} 1. d4 {[%emt 0:00:04]} Nf6 {[%emt 0:09:54]} 2. c4 {[%emt 0:00:08]} g6 {[%emt 0:02:36]} 3. Nc3 {[%emt 0:00:16]} Bg7 {[%emt 0:00:49]} 4. e4 {[%emt 0:00:13]} O-O {[%emt 0:00:09]} 5. h3 {[%emt 0:00:38]} c5 {[%emt 0:00:35]} 6. d5 {[%emt 0:09:16]} b5 {[%emt 0:05:35]} 7. cxb5 {[%emt 0:04:22]} d6 {[%emt 0:00:33]} 8. Nf3 {[%emt 0:04:48]} a6 {[%emt 0:00:01]} 9. bxa6 {[%emt 0:01:07]} Qa5 {[%emt 0:00:31] White must now prevent ...Nxe4.} 10. Bd2 {[%emt 0:14:24][%cal Oa6a7] E90: King's Indian: Classical: Early deviations and 6 h3.} (10. Nd2 $5 {[%cal Rd2c4]}) 10... Bxa6 {[%emt 0:00:23]} 11. Bxa6 {[%emt 0:01:15]} Qxa6 {[%emt 0:01:07]} 12. Qe2 {[%emt 0:03:43]} Nfd7 {[%emt 0:00:03]} 13. Qxa6 {[%emt 0:03:35]} Nxa6 {[%emt 0:00:01]} 14. O-O {[%emt 0:00:09]} Rfb8 {[%emt 0:00:04]} 15. Rab1 {[%emt 0:01:02] [#]} Nc7 $146 {[%emt 0:10:50]} ({Predecessor:} 15... Nb4 16. a4 c4 17. Bg5 Kf8 18. Be3 Nd3 19. Nd4 Rxb2 20. Ra1 N7c5 21. Ra3 Nb3 {0-1 (30) Strebkovs,A (2318)-Wojtczak,M (2219) Brno 2012}) 16. a3 {[%emt 0:07:44]} Ne5 {[%emt 0:06:30]} 17. Nxe5 {[%emt 0:12:17]} Bxe5 {[%emt 0:00:04]} 18. Rfc1 {[%emt 0:06:44]} f5 {[%emt 0:08:45]} 19. b4 {[%emt 0:11:34]} (19. exf5 $11 gxf5 20. b4 (20. Rd1 Rb3 $15)) 19... cxb4 {[%emt 0:02:14]} (19... Bxc3 $15 20. Bxc3 fxe4) 20. axb4 $11 {[%emt 0:01:10]} fxe4 {[%emt 0:00:09][%mdl 64] [#] Remove Defender} 21. Nxe4 {[%emt 0:03:03]} Nxd5 {[%emt 0:00:02]} 22. b5 {[%emt 0:02:52]} Rb6 {[%emt 0:08:18]} 23. Bc3 {[%emt 0:04:49] [#]} (23. Rb3 $11) 23... Ra4 {[%emt 0:05:51]} (23... Bf4 $1 $17 {[%cal Rf4c1]} 24. Rd1 Nc7) 24. Bxe5 {[%emt 0:01:31] White wants to mate with Rc8+.} Rxe4 {[%emt 0:04:33]} 25. Rc8+ {[%emt 0:00:06]} Kf7 {[%emt 0:00:08]} 26. Bc3 {[%emt 0:00:12] The position is equal.} Nxc3 {[%emt 0:01:25]} (26... Ra4 {seems wilder.} 27. Bd2 Ra7 28. Bh6 e5) 27. Rxc3 {[%emt 0:00:07][%mdl 4096] Endgame KRR-KRR} Re5 {[%emt 0:02:41]} 28. Rcb3 {[%emt 0:00:31]} d5 {[%emt 0:00:46]} 29. Rd3 {[%emt 0:01:28]} Ke6 {[%emt 0:00:16]} 30. f4 {[%emt 0:00:41]} Re4 {[%emt 0:00:09]} 31. g3 {[%emt 0:00:13]} d4 {[%emt 0:04:11]} 32. Kf2 {[%emt 0:00:55]} Kd5 {[%emt 0:00:01]} 33. Kf3 {[%emt 0:01:27]} e5 {[%emt 0:00:02]} 34. fxe5 {[%emt 0:01:31]} Kxe5 {[%emt 0:00:12]} 35. g4 {[%emt 0:03:09]} g5 {[%emt 0:04:41]} 36. Kg3 {[%emt 0:00:44]} Kd5 {[%emt 0:00:33]} 37. h4 {[%emt 0:00:31]} h6 {[%emt 0:05:59]} 38. hxg5 {[%emt 0:00:03]} hxg5 {[%emt 0:00:05]} 39. Rf3 {[%emt 0:00:18]} Re5 {[%emt 0:00:51]} 40. Rf8 {[%emt 0:00:00]} Kc4 {[%emt 0:00:00] ...d3 is the strong threat.} 41. Rc8+ {[%emt 0:02:42]} Kd5 {[%emt 0:06:20] Weighted Error Value: White=0.11 (very precise) /Black=0.11 (very precise)} 1/2-1/2

[Event "2nd Serbia Open Masters 2022"]
[Site "Novi Sad"]
[Date "2022.06.29"]
[Round "2.23"]
[White "Padmini, Rout"]
[Black "Koustav Chatterjee"]
[Result "1-0"]
[ECO "C70"]
[WhiteElo "2348"]
[BlackElo "2485"]
[Annotator "TA"]
[PlyCount "79"]
[EventDate "2022.06.28"]
[EventType "swiss"]
[EventCountry "SRB"]
[SourceTitle "playchess.com"]
[Source "ChessBase"]
[SourceQuality "1"]
[TimeControl "40/5400+30:900+30"]

{[%evp 9,79,72,72,58,55,47,61,50,45,57,56,55,55,43,44,46,44,0,0,-29,31,33,37,22,60,46,76,77,83,75,84,83,87,77,84,83,102,69,136,144,158,144,144,0,0,0,225,231,226,230,212,223,226,0,0,0,227,217,203,213,194,203,628,608,622,615,564,556,29975,29976,29994,29995]} 1. e4 {[%emt 0:00:30]} e5 {[%emt 0:00:30]} 2. Nf3 {[%emt 0:00:00]} Nc6 {[%emt 0:02:32]} 3. Bb5 {[%emt 0:00:08][%cal Bf1b5,Bb5a4,Ba4b3][%mdl 32]} a6 {[%emt 0:00:17]} 4. Ba4 {[%emt 0:00:06]} f5 {[%emt 0:03:47]} 5. d4 {[%emt 0:03:24]} exd4 {[%emt 0:00:08]} 6. e5 {[%emt 0:04:26] C70: Ruy Lopez: 3...a6 4 Ba4, Norwegian and Delayed Schliemann.} b5 {[%emt 0:00:25] is currently scoring better than 6...Bc5.} 7. Bb3 {[%emt 0:00:03]} Bb7 {[%emt 0:00:05]} 8. O-O {[%emt 0:02:00] White is slightly better.} Na5 $1 {[%emt 0:00:12]} 9. Nxd4 {[%emt 0:04:00]} c5 {[%emt 0:00:08]} 10. Nxf5 {[%emt 0:07:38]} c4 {[%emt 0:00:06] [#]} 11. Re1 $1 {[%emt 0:01:04][%cal Od1d4]} Qb6 {[%emt 0:11:55]} (11... cxb3 $2 12. axb3 Qb6 13. Qh5+ Qg6 14. Qxg6+ (14. Nd6+ Bxd6 15. Qxg6+ hxg6 $16) 14... hxg6 15. Nd6+ Bxd6 16. exd6+ Kf7 17. Rxa5 $16) 12. Nd6+ {[%emt 0:06:21]} (12. Be3 Qg6 13. g4 (13. Nh4 Qe6 $15) 13... h5 $17) 12... Bxd6 {[%emt 0:00:12] [#]} 13. exd6+ $146 {[%emt 0:00:07]} (13. Qxd6 Qxd6 14. exd6+ Kf7 $17) ({Predecessor:} 13. Qh5+ Kd8 14. exd6 Nf6 15. Bg5 Kc8 16. Qh3 Ne4 17. Be3 Qxd6 18. f3 Nf6 19. Nc3 {0-1 (56) Albornoz Cabrera,C (2574)-Ganguly,S (2609) Havana 2022}) 13... Kf8 {[%emt 0:15:53]} 14. Nc3 {[%emt 0:07:45][%cal Oc1g5] Strongly threatening Bg5!} Nf6 {[%emt 0:09:11]} (14... cxb3 15. axb3 h6 16. Bf4 $16) ({Black should try} 14... Qc5 $1 $11) 15. Be3 $1 $14 {[%emt 0:06:33]} (15. Qe2 Qxd6 16. Rd1 Qc5 $17) 15... Qc6 {[%emt 0:04:27][%csl Gb7][%cal Rc6g2] [#]} 16. f3 $1 {[%emt 0:00:19][%cal Ob3a4] Active counter play!} Re8 {[%emt 0:07:48] [#]} (16... Kf7 17. Qd4) 17. Qd2 $1 {[%emt 0:05:40][%cal Oe3f2]} Ba8 {[%emt 0:06:55] [#]} (17... cxb3 $2 18. axb3 Nxb3 19. cxb3 $16) (17... Kf7 18. Ne4) 18. a4 $1 {[%emt 0:16:51]} b4 {[%emt 0:04:03] [#]} (18... cxb3 $2 19. axb5 Nc4 20. bxc6 $18) 19. Ba2 {[%emt 0:00:22][%cal Oc3e4] And now Ne4! would win.} bxc3 {[%emt 0:00:29]} 20. Qxc3 {[%emt 0:00:05]} Nd5 {[%emt 0:05:21]} (20... Qxa4 $2 21. b4 Nd5 22. Qd4 Qxb4 23. Bd2 Qxd6 24. Bxa5 $18) 21. Qd4 {[%emt 0:06:52]} Nxe3 {[%emt 0:10:37]} 22. Rxe3 {[%emt 0:02:36]} Rxe3 {[%emt 0:00:55]} 23. Qf4+ $40 {[%emt 0:00:16][%mdl 128] White attacks.} Kg8 {[%emt 0:02:51]} 24. Qxe3 {[%emt 0:01:32][%cal Re3e8]} Qxd6 {[%emt 0:07:33] Threatens to win with ...Kf7.} 25. Qe8+ {[%emt 0:02:14]} Qf8 {[%emt 0:00:02]} 26. Qe5 {[%emt 0:06:26]} ({Resist} 26. Qxd7 h5 $16) ({White should play} 26. Re1 $16 h5 27. Qxd7) 26... Qd8 $11 {[%emt 0:01:22]} 27. Re1 {[%emt 0:03:05]} h5 $2 {[%emt 0:00:09]} (27... g6 $1 $11) 28. b4 $1 $18 {[%emt 0:02:42]} cxb3 {[%emt 0:01:41]} 29. cxb3 {[%emt 0:00:24] b4+ is the strong threat.} d5 {[%emt 0:03:04]} 30. Qe6+ {[%emt 0:02:59][%mdl 1024] White has strong compensation.} Kf8 {[%emt 0:00:02] aiming for ...Rh6.} 31. Qf5+ $2 {[%emt 0:02:17]} (31. Bb1 $1 $18 {[%cal Rb1g6] White threatens Bg6 and mate.} Rh6 32. Bg6 Rxg6 33. Qxg6) 31... Kg8 $11 {[%emt 0:00:01] White must now prevent ...Rh6.} 32. Qe6+ {[%emt 0:03:43]} (32. Qg6 $11 Bc6 33. Qe6+ Kf8 34. Qf5+ Kg8 35. b4) 32... Kf8 $18 {[%emt 0:00:02] [#] Hoping for ...Rh6.} 33. Bb1 $1 {[%emt 0:02:49] White wants to mate with Bg6.} Rh6 {[%emt 0:03:26]} 34. Bg6 {[%emt 0:00:02]} Rxg6 {[%emt 0:00:04]} 35. Qxg6 {[%emt 0:00:05]} Bc6 $2 {[%emt 0:00:54]} (35... Nc6 36. Qf5+ (36. Qxh5 Bb7 $16) 36... Kg8 37. Qe6+ (37. Qxh5 Kf8 $18) (37. Qg6 Kf8 $18) 37... Kf8 38. Qf5+ Kg8 39. Qxh5 (39. Qg6 Kf8 $18) 39... Kf8 40. Qf5+ Kg8 41. Qe6+ Kf8) 36. Qf5+ {[%emt 0:01:52]} Kg8 {[%emt 0:00:16] [#]} 37. Qe6+ $1 {[%emt 0:00:10]} Kh7 {[%emt 0:00:42]} 38. Re5 {[%emt 0:00:23][%cal Re5h5]} g6 {[%emt 0:00:47]} 39. Qf7+ {[%emt 0:00:26]} Kh6 {[%emt 0:00:22]} 40. Re6 {[%emt 0:00:00] Weighted Error Value: White=0.14 (very precise) /Black=0.48} 1-0